[Event "Czech Open Rapid G1 2024"]
[Site "Pardubice"]
[Date "2024.07.17"]
[Round "1.1"]
[White "Eropunov, Gleb"]
[Black "Navara, David"]
[Result "0-1"]
[Annotator "TA"]
[ECO "B13"]
[WhiteElo "2190"]
[BlackElo "2682"]
[PlyCount "66"]
[EventDate "2024.07.16"]
[EventType "swiss"]
[EventCountry "CZE"]
[SourceTitle "playchess.com"]
[Source "ChessBase"]
[SourceQuality "1"]
[TimeControl "1200+10"]

{[%evp 14,66,25,25,14,20,20,8,22,19,8,0,0,16,20,26,10,-17,-26,-29,-17,-6,0,-28,0,0,0,-98,-95,-88,-58,-39,0,-113,-113,-132,-94,-94,-94,-264,-269,-261,-269,-378,-375,-416,-405,-764,-789,-1271,-1201,-1672,-1593,-29966,-29965]} 1. e4 {[%emt 0:00:02]} c6 {[%emt 0:00:08]} 2. d4 {[%emt 0:00:05]} d5 {[%emt 0:00:02]} 3. exd5 {[%emt 0:00:17]} cxd5 {[%emt 0:00:01]} 4. Bd3 {[%emt 0:00:01]} Nf6 {[%emt 0:00:20]} 5. h3 {[%emt 0:00:08]} Nc6 {[%emt 0:00:08]} 6. c3 {[%emt 0:00:01]} e5 {[%emt 0:00:27]} 7. dxe5 {[%emt 0:00:09]} Nxe5 {[%emt 0:00:02]} 8. Nf3 {[%emt 0:00:06]} Nxd3+ {[%emt 0:00:02]} 9. Qxd3 {[%emt 0:00:02]} Bd6 {[%emt 0:00:02]} 10. O-O {[%emt 0:00:22]} O-O {[%emt 0:00:15] The position is equal.} 11. Bg5 {[%emt 0:00:04]} h6 {[%emt 0:00:34]} 12. Bh4 {[%emt 0:00:05]} g5 {[%emt 0:04:17]} 13. Bg3 {[%emt 0:00:02]} Nh5 {[%emt 0:00:23]} 14. Bxd6 {[%emt 0:09:00]} Qxd6 {[%emt 0:00:02]} 15. Re1 {[%emt 0:00:07]} Nf4 $36 {[%emt 0:00:49][%mdl 2048] Black has some pressure.} 16. Qd4 {[%emt 0:00:07]} Bf5 {[%emt 0:00:40] Hoping for ...Rfe8.} 17. Nbd2 {[%emt 0:04:00]} Rfe8 {[%emt 0:02:16]} 18. Nc4 {[%emt 0:00:40]} Qa6 {[%emt 0:03:04]} (18... Qd7 $5 19. Ne3 Bxh3 $11) 19. Ne3 {[%emt 0:00:15]} Be4 {[%emt 0:00:12]} 20. Ng4 {[%emt 0:02:20]} (20. Nd2 $11 {remains equal.}) 20... Re6 $17 {[%emt 0:00:12]} 21. Qd1 {[%emt 0:04:54]} Nd3 {[%emt 0:04:28] Black is more active.} (21... Rae8 {feels hotter.} 22. Nd4 Bxg2 23. Nf6+ Rxf6 24. Rxe8+ Kg7) 22. Nd4 {[%emt 0:00:48]} Nxb2 {[%emt 0:01:47]} 23. Qb3 {[%emt 0:00:09]} (23. Qe2 $1 $11 Rb6 (23... Qxe2 24. Rxe2 Rb6 25. Nxh6+ Kf8 26. Ng4 $15) 24. Nxh6+ Rxh6 25. Qxb2) 23... Rb6 {[%emt 0:00:05]} 24. Nf6+ {[%emt 0:00:05]} Kh8 {[%emt 0:00:54]} (24... Rxf6 25. Qxb2 Rc8 26. Rad1 $17) 25. Nxe4 {[%emt 0:00:13]} Rxb3 {[%emt 0:00:04]} 26. Nc5 $2 {[%emt 0:00:01] [#] A dynamic duo of knights. White does not recover from this.} (26. axb3 $17 Qb6 27. Ng3) 26... Qa3 $19 {[%emt 0:01:42]} 27. Ncxb3 {[%emt 0:00:04]} Rc8 {[%emt 0:00:33]} 28. Nf5 {[%emt 0:00:09]} (28. Re2 $142) 28... Nd3 {[%emt 0:00:18]} ({Much less strong is} 28... Rxc3 29. Nxh6 Nd3 30. Red1 $19) 29. Re3 {[%emt 0:00:16]} Rxc3 {[%emt 0:00:14]} 30. Rd1 {[%emt 0:00:01]} (30. Nfd4 $142) 30... Qxa2 {[%emt 0:00:15]} 31. Rd2 {[%emt 0:00:35]} Qxb3 {[%emt 0:00:11]} 32. Nxh6 {[%emt 0:00:03]} d4 {[%emt 0:00:21]} 33. Nxf7+ {[%emt 0:00:08]} Qxf7 {[%emt 0:00:02] Weighted Error Value: White=1.09/Black=0.08 (flawless) .  Loses game:     	White=1     	---        Mistake:       	White=4     	---        Inaccurate:     	White=3     	Black=3      OK:         	White=10    	Black=12     Best:        	White=2     	Black=3} 0-1

[Event "Czech Open Rapid G1 2024"]
[Site "Pardubice"]
[Date "2024.07.17"]
[Round "1.2"]
[White "Nisipeanu, Liviu-Dieter"]
[Black "Mojzis, Jaroslav"]
[Result "1-0"]
[Annotator "TA"]
[ECO "C65"]
[WhiteElo "2583"]
[BlackElo "2068"]
[PlyCount "49"]
[EventDate "2024.07.16"]
[EventType "swiss"]
[EventCountry "CZE"]
[SourceTitle "playchess.com"]
[Source "ChessBase"]
[SourceQuality "1"]
[TimeControl "1200+10"]

{[%evp 12,49,21,7,11,17,20,18,22,14,20,-11,22,19,43,44,68,44,236,222,213,218,209,207,222,226,221,225,225,230,214,185,314,312,378,305,535,532,594,543]} 1. e4 {[%emt 0:00:04]} e5 {[%emt 0:00:01]} 2. Nf3 {[%emt 0:00:02]} Nc6 {[%emt 0:00:01]} 3. Bb5 {[%emt 0:00:06]} Nf6 {[%emt 0:00:01]} 4. d3 {[%emt 0:00:14]} Bc5 {[%emt 0:00:06]} 5. c3 {[%emt 0:00:04]} d6 {[%emt 0:00:06]} 6. O-O {[%emt 0:00:10]} O-O {[%emt 0:00:03]} 7. h3 {[%emt 0:00:04]} h6 {[%emt 0:00:07]} 8. Nbd2 {[%emt 0:00:06][%cal Bb1d2,Bd2f1,Bf1g3,Bg3f5][%mdl 32]} Bb6 {[%emt 0:00:10]} 9. Re1 {[%emt 0:00:31]} Ne7 {[%emt 0:00:12] The position is equal.} 10. d4 {[%emt 0:00:11]} Ng6 {[%emt 0:00:03]} 11. Nf1 {[%emt 0:01:11]} c6 {[%emt 0:00:12]} 12. Bd3 {[%emt 0:00:04]} Qe7 {[%emt 0:00:07]} 13. Ng3 {[%emt 0:00:05]} Nh7 {[%emt 0:01:03]} 14. Nf5 {[%emt 0:02:04]} Bxf5 {[%emt 0:00:43] This costs Black the game.} ({Black should play} 14... Qd8 $14) 15. exf5 $18 {[%emt 0:00:03]} Nh4 {[%emt 0:00:04] [#]} 16. Nh2 {[%emt 0:01:11][%cal Bf3h2,Bh2g4,Bg4e5][%mdl 32]} ({But not} 16. dxe5 $6 Nxf3+ 17. Qxf3 dxe5 $14) 16... Qf6 {[%emt 0:00:31]} 17. Ng4 {[%emt 0:00:08][%csl LRe5,LRf6]} Qd8 {[%emt 0:01:15]} 18. dxe5 {[%emt 0:00:10]} dxe5 {[%emt 0:02:41]} 19. Nxe5 {[%emt 0:01:19] Qg4 is the strong threat.} Re8 {[%emt 0:02:38]} 20. Bf4 {[%emt 0:00:59] [#] Bc4 would now be deadly.} Nf6 {[%emt 0:05:10]} 21. Bc2 {[%emt 0:03:08] Hoping for Bg3.} Nd5 {[%emt 0:00:46]} (21... Qxd1 $142 22. Raxd1 Rad8 23. Rxd8 Bxd8) 22. Bg3 {[%emt 0:00:20]} Bc7 {[%emt 0:02:14]} 23. Qg4 {[%emt 0:00:44]} Nxg2 {[%emt 0:02:35]} (23... Bxe5 24. Rxe5 (24. Bxh4 Bf6 $16) 24... Rxe5) 24. Kxg2 {[%emt 0:00:27]} Qf6 {[%emt 0:01:45]} 25. Nd7 {[%emt 0:00:38] Weighted Error Value: White=0.10 (very precise) /Black=0.57.  Loses game:     	---       	Black=1      Mistake:       	---       	Black=2      Inaccurate:     	White=1     	Black=1      OK:         	White=7     	Black=6      Best:        	White=1     	---} 1-0

[Event "Czech Open Rapid G1 2024"]
[Site "Pardubice"]
[Date "2024.07.17"]
[Round "1.3"]
[White "Kastner, Oldrich"]
[Black "Movsesian, Sergei"]
[Result "0-1"]
[Annotator "TA"]
[ECO "A48"]
[WhiteElo "2004"]
[BlackElo "2618"]
[PlyCount "82"]
[EventDate "2024.07.16"]
[EventType "swiss"]
[EventCountry "CZE"]
[SourceTitle "playchess.com"]
[Source "ChessBase"]
[SourceQuality "1"]
[TimeControl "1200+10"]

{[%evp 18,82,-2,-12,9,-8,28,-20,-5,-42,-12,-35,-37,-35,-23,-22,-15,-37,-34,-28,-38,-44,-41,-73,-79,-72,-63,-72,-68,-75,-67,-50,-15,-259,-256,-250,-262,-258,-260,-248,-251,-251,-245,-286,-285,-316,-304,-319,-328,-364,-356,-530,-517,-603,-492,-712,-704,-893,-872,-1181,-1158,-29990,-29991,-29991,-29992,-29993,-29994]} 1. d4 {[%emt 0:00:04]} Nf6 {[%emt 0:00:01]} 2. Nf3 {[%emt 0:00:05]} g6 {[%emt 0:00:03]} 3. Bg5 {[%emt 0:00:03]} Bg7 {[%emt 0:00:02]} 4. c3 {[%emt 0:00:03]} O-O {[%emt 0:00:03]} 5. Nbd2 {[%emt 0:00:04]} d6 {[%emt 0:00:14]} 6. e4 {[%emt 0:00:04]} c5 {[%emt 0:00:02]} 7. dxc5 {[%emt 0:00:06]} dxc5 {[%emt 0:00:02]} 8. Be2 {[%emt 0:00:31]} Nc6 {[%emt 0:00:10]} 9. O-O {[%emt 0:00:06]} Qc7 {[%emt 0:00:02]} 10. Qc2 {[%emt 0:00:09]} Nh5 {[%emt 0:00:31]} 11. Rfe1 {[%emt 0:00:09]} h6 {[%emt 0:00:15]} 12. Bh4 {[%emt 0:00:23]} (12. Be3 $142) 12... b6 {[%emt 0:00:05] Die Stellung ist ausgeglichen.} 13. Bf1 {[%emt 0:00:35]} Bg4 {[%emt 0:00:11]} 14. Bg3 {[%emt 0:03:09]} Nxg3 {[%emt 0:00:49]} 15. hxg3 {[%emt 0:00:02]} Rad8 {[%emt 0:00:02]} 16. Nc4 {[%emt 0:00:16]} Bc8 {[%emt 0:00:36]} 17. Ne3 {[%emt 0:00:11]} e6 {[%emt 0:00:02]} 18. Rad1 {[%emt 0:00:12]} Bb7 {[%emt 0:00:01]} 19. Ng4 {[%emt 0:00:46]} Nb8 {[%emt 0:01:05][%cal Bc6b8,Bb8d7,Bd7e5,Be5d3][%mdl 32]} 20. Bb5 {[%emt 0:01:20]} a6 {[%emt 0:00:44]} 21. Bf1 {[%emt 0:00:08]} Nd7 {[%emt 0:00:17]} 22. a4 {[%emt 0:00:09]} c4 {[%emt 0:00:22]} 23. Nd4 {[%emt 0:00:55]} h5 {[%emt 0:01:28]} 24. Ne3 {[%emt 0:00:26]} Ne5 {[%emt 0:00:02][%cal Oe5d3] und nun wäre ...Nd3! stark für Schwarz.} 25. Qe2 $2 {[%emt 0:01:12] [#] Davon erholt Weiß sich nicht mehr.} (25. f4 $11 {und Weiss ist OK.}) 25... Nd3 $19 {[%emt 0:00:33]} ({Nicht} 25... Bxe4 26. Nxc4 Nxc4 27. Qxc4 Qxc4 28. Bxc4 $15) 26. Nxc4 {[%emt 0:01:10]} Nxe1 {[%emt 0:00:03]} 27. Qxe1 {[%emt 0:00:10]} e5 {[%emt 0:00:24]} 28. Nf3 {[%emt 0:00:53]} Rxd1 {[%emt 0:00:04]} 29. Qxd1 {[%emt 0:00:01]} Bxe4 {[%emt 0:00:03]} 30. Qb3 {[%emt 0:00:54]} Rb8 {[%emt 0:01:04]} 31. Ne3 {[%emt 0:00:34] Verhindert Bd5.} Bh6 {[%emt 0:00:13] Wehrt Ng5 ab} 32. Nd5 {[%emt 0:01:57]} Qd6 {[%emt 0:00:12]} 33. Nb4 {[%emt 0:00:57]} a5 {[%emt 0:00:22]} 34. Na6 {[%emt 0:00:28]} (34. Nc2 {ist der einzige Weg für Weiss..}) 34... Rd8 {[%emt 0:00:42]} 35. Qb5 {[%emt 0:00:58]} Bd5 {[%emt 0:02:07]} 36. Be2 {[%emt 0:01:22]} (36. c4 $142 Bc6 37. Qxe5) 36... e4 {[%emt 0:00:21]} 37. Nd4 {[%emt 0:00:26]} e3 {[%emt 0:00:14][%cal Oh5h4] ...h4! wäre nun fies.} 38. f4 {[%emt 0:00:36] [#]} h4 $1 {[%emt 0:00:08]} 39. gxh4 {[%emt 0:01:58]} (39. Nb8 Qxb8) 39... Qxf4 {[%emt 0:00:26] Schwarz setzt Matt.} 40. Bf3 {[%emt 0:00:29]} Bxf3 {[%emt 0:00:14]} 41. Nxf3 {[%emt 0:00:01]} Rd1+ {[%emt 0:00:03] Gewichteter Fehlerwert: Weiß=0.77/Schwarz=0.09 (makellos) .  Verlustzug:     	Weiß=1     	---        Fehler:       	Weiß=3     	---        Ungenau:       	Weiß=2     	Schwarz=3     OK:         	Weiß=7     	Schwarz=16    Bester:       	---       	Schwarz=1} 0-1

[Event "Czech Open Rapid G1 2024"]
[Site "Pardubice"]
[Date "2024.07.17"]
[Round "1.4"]
[White "Stocek, Jiri"]
[Black "Dehmel, Jens"]
[Result "1-0"]
[Annotator "TA"]
[ECO "B10"]
[WhiteElo "2524"]
[BlackElo "1980"]
[PlyCount "31"]
[EventDate "2024.07.16"]
[EventType "swiss"]
[EventCountry "CZE"]
[SourceTitle "playchess.com"]
[Source "ChessBase"]
[SourceQuality "1"]
[TimeControl "1200+10"]

{[%evp 10,30,12,0,32,20,62,72,79,81,196,193,163,181,653,659,757,749,1021,947,29998,29999,29999]} 1. c4 {[%emt 0:00:02]} c6 {[%emt 0:00:01]} 2. e4 {[%emt 0:00:07]} d5 {[%emt 0:00:01]} 3. exd5 {[%emt 0:00:02]} cxd5 {[%emt 0:00:01]} 4. cxd5 {[%emt 0:00:02]} Nf6 {[%emt 0:00:01]} 5. Nc3 {[%emt 0:00:02]} Nxd5 {[%emt 0:00:02]} 6. Nf3 {[%emt 0:00:03]} g6 {[%emt 0:00:05]} 7. Qb3 {[%emt 0:03:10]} Nxc3 {[%emt 0:00:15]} 8. Qxc3 {[%emt 0:01:40]} f6 {[%emt 0:00:08] White is better.} 9. Bc4 {[%emt 0:00:12] Prevents Be6. White is more active.} e5 {[%emt 0:00:34]} (9... Nc6 $16 {was necessary.}) 10. O-O $18 {[%emt 0:00:15]} Nc6 {[%emt 0:01:41]} 11. d4 {[%emt 0:00:09] Against Bc5} Nxd4 {[%emt 0:01:19] [#]} (11... Qa5 12. Qb3 Qb6 13. dxe5 Qxb3 14. axb3 (14. Bxb3 Bg7 $18) 14... fxe5 15. Nxe5 Nxe5) 12. Nxd4 {[%emt 0:00:10]} Qxd4 {[%emt 0:00:03]} 13. Qb3 {[%emt 0:00:14]} Be7 {[%emt 0:00:34]} 14. Rd1 {[%emt 0:01:01]} Qb6 {[%emt 0:00:26]} 15. Bf7+ {[%emt 0:00:08]} Kf8 {[%emt 0:00:24]} 16. Bh6# {[%emt 0:00:02] White took control after the opening.   Weighted Error Value: White=0.02 (flawless) /Black=1.84.  Mistake:       	---       	Black=2      Inaccurate:     	---       	Black=1      OK:         	White=4     	Black=1} 1-0

[Event "Czech Open Rapid G1 2024"]
[Site "Pardubice"]
[Date "2024.07.17"]
[Round "1.5"]
[White "Dorokhina, Elizaveta"]
[Black "Pulpan, Jakub"]
[Result "0-1"]
[Annotator "TA"]
[ECO "E14"]
[WhiteElo "1962"]
[BlackElo "2383"]
[PlyCount "80"]
[EventDate "2024.07.16"]
[EventType "swiss"]
[EventCountry "CZE"]
[SourceTitle "playchess.com"]
[Source "ChessBase"]
[SourceQuality "1"]
[TimeControl "1200+10"]

{[%evp 18,80,8,0,30,14,31,15,17,0,0,0,0,-39,-13,-58,-17,-16,-18,-59,-16,-30,-26,-37,-18,-41,-9,-160,-136,-205,-194,-337,-298,-258,-114,-279,-264,-412,-263,-209,-47,-245,-77,-204,-220,-188,-219,-160,-94,-368,-207,-254,-127,-462,-448,-458,-457,-800,-801,-997,-997,-977,-863,-29997,-29996]} 1. d4 {[%emt 0:00:02]} Nf6 {[%emt 0:00:04]} 2. Nf3 {[%emt 0:00:02]} b6 {[%emt 0:00:42]} 3. c4 {[%emt 0:00:34]} Bb7 {[%emt 0:00:11]} 4. e3 {[%emt 0:00:02]} e6 {[%emt 0:00:06]} 5. Bd3 {[%emt 0:00:22]} d5 {[%emt 0:00:06]} 6. b3 {[%emt 0:00:02]} Bd6 {[%emt 0:00:06]} 7. O-O {[%emt 0:00:06]} Nbd7 {[%emt 0:00:03]} 8. Bb2 {[%emt 0:00:03]} a6 {[%emt 0:00:02]} 9. Nc3 {[%emt 0:00:06]} O-O {[%emt 0:00:09]} 10. Rc1 {[%emt 0:03:04]} c5 {[%emt 0:00:03]} 11. cxd5 {[%emt 0:00:29]} exd5 {[%emt 0:00:02]} 12. Ne2 {[%emt 0:00:39]} Re8 {[%emt 0:00:10] The position is equal.} 13. Bb1 {[%emt 0:01:12]} Rc8 {[%emt 0:00:51]} 14. dxc5 {[%emt 0:01:29]} bxc5 {[%emt 0:00:04]} 15. Ng3 {[%emt 0:00:10]} Bf8 {[%emt 0:00:30]} 16. h4 {[%emt 0:01:32]} Qb6 {[%emt 0:01:02]} 17. Bf5 {[%emt 0:00:32]} Rcd8 {[%emt 0:00:09]} 18. h5 {[%emt 0:01:05]} g6 {[%emt 0:00:51]} 19. hxg6 {[%emt 0:01:11]} hxg6 {[%emt 0:00:02]} 20. Bh3 {[%emt 0:00:37]} Bd6 {[%emt 0:00:35]} 21. Ne2 {[%emt 0:00:19]} Bb8 {[%emt 0:00:30][%cal Od5d4]} 22. Nf4 $2 {[%emt 0:00:21] [#]} (22. b4 $11) 22... d4 $1 $17 {[%emt 0:00:26]} 23. Qc2 {[%emt 0:01:02]} (23. Ng5 $17 {was worth a try.}) 23... Be4 $19 {[%emt 0:00:52]} (23... dxe3 24. fxe3 Ne4 (24... Rxe3 25. Nxg6 Rde8 26. Bxd7 $15) 25. Bxd7 Rxd7 26. Rfd1 $17) 24. Qc4 {[%emt 0:00:40]} (24. Qd1 $142) 24... Bxf4 {[%emt 0:03:31]} 25. exf4 {[%emt 0:00:04]} Qd6 {[%emt 0:00:07]} (25... Bxf3 $19 26. gxf3 Qd6) 26. Ne1 $2 {[%emt 0:03:00]} ({Wrong is} 26. Ng5 $2 Bd5 (26... Qxf4 27. Qxf7+ Kh8 28. Nxe4 $14) 27. Qd3 Qxf4 $19) (26. Nxd4 $17 cxd4 27. Qxd4 Qxd4 (27... Qxf4 28. Bxd7 Rxd7 29. Qxf6 $16) 28. Bxd4) 26... Qxf4 {[%emt 0:03:26]} 27. Nd3 {[%emt 0:00:35] Wards off Ne5} (27. Rd1 $142) 27... Qd2 {[%emt 0:00:36]} 28. Rfd1 {[%emt 0:01:31]} Qe2 {[%emt 0:00:18]} (28... Bxd3 $19 29. Rxd2 Bxc4 30. bxc4 Ne5) 29. Ba3 $2 {[%emt 0:00:17]} (29. Ne5 $1 $15 Qxc4 (29... Qxb2 30. Qxf7+ Kh8 31. Bxd7 $11) 30. Nxc4) 29... Qxa2 $2 {[%emt 0:01:20]} (29... Qh5 $19 {And now ...g5 would win.} 30. Re1 Bxd3 31. Qxd3 Ne5) 30. Bxc5 {[%emt 0:00:09]} (30. Bxd7 $17 {keeps fighting.} Nxd7 (30... Rxd7 31. Bxc5 Bd5 32. Qxd4 $15) 31. Ra1 Bxd3 32. Qxd3) 30... Bxd3 {[%emt 0:00:53]} 31. Qxd3 {[%emt 0:00:03]} Nxc5 {[%emt 0:00:38]} 32. Rxc5 {[%emt 0:00:02]} Rd6 {[%emt 0:00:05]} (32... Ne4 $142 33. Rc2 Qa5) 33. Qf3 {[%emt 0:00:33][%mdl 8192]} (33. Rc4 $17) 33... Kg7 {[%emt 0:00:20]} (33... d3 $142 34. Rc6 Rxc6 35. Qxc6 Qxb3) 34. Rc7 {[%emt 0:00:16]} Qe2 {[%emt 0:00:26]} (34... Qa5 $19 35. Qb7 Re1+ 36. Rxe1 Qxe1+ 37. Kh2 Qe5+ (37... Qxf2 $2 38. Rxf7+ Kh6 39. Qe7 $19) 38. g3 Qd5 39. Qxd5 Nxd5) 35. Rd3 $2 {[%emt 0:01:05][%mdl 8192]} (35. Qxe2 $17 {is a better chance.} Rxe2 36. Rc4) 35... Qxf3 {[%emt 0:00:06]} 36. gxf3 {[%emt 0:00:03]} Nh5 {[%emt 0:00:18] [#] Threatens to win with ...Nf4.} 37. Rd2 {[%emt 0:00:30]} (37. Rd7 $142 Rd8 38. Rxd8 Rxd8 39. Kh2) 37... Nf4 {[%emt 0:00:05]} 38. Bf1 {[%emt 0:00:01]} Re1 {[%emt 0:00:12]} 39. Rc4 {[%emt 0:00:08]} Rd5 {[%emt 0:00:04] ( -> ...Rg5+)} 40. Ra4 {[%emt 0:00:39]} Rh5 {[%emt 0:00:13] Weighted Error Value: White=1.19/Black=0.52.  Loses game:     	White=4     	---        Missed win:     	---       	Black=2      Mistake:       	White=6     	Black=4      Inaccurate:     	White=3     	Black=5      OK:         	White=4     	Black=8      Best:        	---       	Black=3      Strong:       	---       	Black=1} 0-1

[Event "Czech Open Rapid G1 2024"]
[Site "Pardubice"]
[Date "2024.07.17"]
[Round "1.6"]
[White "Neuman, Petr"]
[Black "Laith, Kasib"]
[Result "1-0"]
[Annotator "TA"]
[ECO "C10"]
[WhiteElo "2441"]
[BlackElo "2075"]
[PlyCount "73"]
[EventDate "2024.07.16"]
[EventType "swiss"]
[EventCountry "CZE"]
[SourceTitle "playchess.com"]
[Source "ChessBase"]
[SourceQuality "1"]
[TimeControl "1200+10"]

{[%evp 12,73,50,47,71,60,72,43,47,39,86,62,61,57,87,58,63,0,0,0,0,0,22,28,56,63,47,12,46,37,63,46,70,54,91,73,95,105,112,7,93,81,91,115,242,195,276,279,339,336,475,513,478,461,840,796,1029,547,812,479,1216,1203,2396,2297]} 1. d4 {[%emt 0:00:04]} e6 {[%emt 0:00:09]} 2. e4 {[%emt 0:00:04]} d5 {[%emt 0:00:02]} 3. Nd2 {[%emt 0:00:02]} dxe4 {[%emt 0:00:02]} 4. Nxe4 {[%emt 0:00:02]} Bd7 {[%emt 0:00:01]} 5. Nf3 {[%emt 0:00:10]} Bc6 {[%emt 0:00:02]} 6. Bd3 {[%emt 0:00:05]} Nd7 {[%emt 0:00:42]} 7. Qe2 {[%emt 0:00:32]} Bxe4 {[%emt 0:00:22]} 8. Bxe4 {[%emt 0:00:02]} c6 {[%emt 0:00:01]} 9. Bd2 {[%emt 0:00:36]} Ngf6 {[%emt 0:00:10] White is slightly better.} 10. Bd3 {[%emt 0:00:02]} Be7 {[%emt 0:01:31]} (10... Bd6 $14 {is superior.}) 11. O-O-O {[%emt 0:00:04][%cal Be1c1,Bc1b1,Bb1a1][%mdl 32]} Qc7 {[%emt 0:00:54]} 12. Kb1 {[%emt 0:00:04]} O-O {[%emt 0:03:33]} 13. Ne5 {[%emt 0:02:12]} Rad8 {[%emt 0:03:29]} 14. Bf4 {[%emt 0:03:03] White has more active pieces.} (14. h4 $14) 14... Nd5 $11 {[%emt 0:01:27]} 15. Bg3 {[%emt 0:00:27] A strong pair of Bishops.} Qb6 {[%emt 0:00:09]} 16. Ka1 $1 {[%emt 0:01:03]} Nb4 {[%emt 0:01:19]} 17. Bc4 $40 {[%emt 0:00:47][%cal Oe5f7][%mdl 128] White mounts an attack.} Nf6 {[%emt 0:00:36]} 18. c3 {[%emt 0:00:18]} Nbd5 {[%emt 0:00:02]} 19. Nd3 {[%emt 0:01:37]} Qa5 {[%emt 0:00:28]} 20. Bb3 {[%emt 0:00:13]} b5 {[%emt 0:00:18]} 21. h4 {[%emt 0:01:54][%cal Bh2h4,Bh4h5][%mdl 32]} Rfe8 {[%emt 0:00:40]} 22. h5 {[%emt 0:00:02]} h6 {[%emt 0:00:04]} 23. f4 {[%emt 0:00:39]} Qb6 {[%emt 0:00:57]} 24. Bf2 {[%emt 0:00:14]} a5 {[%emt 0:00:15]} 25. Bc2 {[%emt 0:00:07]} (25. g4 $16) 25... Bd6 {[%emt 0:01:19]} (25... a4 $1 $11) 26. Qf3 $16 {[%emt 0:00:04] aiming for g4.} Qc7 {[%emt 0:00:44][%cal Rd6f4]} 27. Ne5 {[%emt 0:00:04] Strongly threatening g4.} c5 {[%emt 0:02:54] [#] A mistake that costs the game.} (27... Nh7 $16 {was called for.}) 28. g4 $1 $18 {[%emt 0:00:03] Rdg1 would now be deadly.} cxd4 {[%emt 0:00:09]} (28... Nh7 $142 29. dxc5 Bxe5) 29. Bxd4 {[%emt 0:00:04]} b4 {[%emt 0:01:10]} 30. c4 {[%emt 0:00:57]} Bc5 {[%emt 0:00:51] Black is weak on the light squares} (30... Bxe5 $142 31. fxe5 Nh7) 31. Bxc5 {[%emt 0:00:18] White is clearly winning.} (31. cxd5 Bxd4 32. Rxd4 (32. Nc6 Rxd5 33. Nxd4 Rxd4 $16) 32... Qxc2 $18) 31... Qxc5 {[%emt 0:00:01]} 32. Ba4 {[%emt 0:00:14]} ({Not} 32. g5 Ne3 $18) 32... Nb6 {[%emt 0:00:52]} (32... Nc7 $142 33. Bxe8 Rxd1+ 34. Rxd1 Nfxe8) 33. Bxe8 {[%emt 0:00:12]} Rxe8 {[%emt 0:00:02]} 34. Qd3 {[%emt 0:01:32] [#] Threatens to win with g5.} a4 {[%emt 0:00:09]} 35. Qd4 {[%emt 0:00:03]} Qa5 {[%emt 0:00:17]} (35... Qxd4 $142 36. Rxd4 b3) 36. g5 {[%emt 0:00:14][%cal Bg4g5,Bg5h6][%mdl 32]} Nh7 {[%emt 0:00:15]} 37. gxh6 {[%emt 0:00:13] Weighted Error Value: White=0.41/Black=0.41.  Mistake:       	White=2     	Black=7      Inaccurate:     	White=3     	Black=6      OK:         	White=10    	Black=5      Best:        	White=2     	---        Strong:       	White=2     	---} 1-0